bitfinex/quotes_SOLUSD_20250415
["timestamp","ask_amount","ask_price","bid_price","bid_amount"]
[1744746779158,15.86150805,127.92,127.87,11.26]
[1744746779342,15.86150805,127.92,127.87,27.12150805]
[1744746779663,15.86150805,127.91,127.87,27.12150805]
[1744746779861,15.86150805,127.91,127.87,11.26]
[1744746780070,15.86150805,127.92,127.87,27.12150805]
[1744746781074,15.86150805,127.92,127.87,11.26]
[1744746781372,15.86150805,127.92,127.87,27.12150805]
[1744746781671,15.86150805,127.93,127.88,15.86150805]
[1744746781857,15.86150805,127.94,127.89,15.86150805]
[1744746782575,23.67767187,127.94,127.89,15.86150805]
[1744746782875,23.67767187,127.94,127.9,15.86150805]
[1744746783955,7.81616382,127.94,127.9,15.86150805]
[1744746784148,7.81616382,127.94,127.91,15.86150805]
[1744746784349,7.81555295,127.95,127.91,15.86150805]
[1744746785073,23.677061,127.95,127.9,16.00366962]
[1744746785575,23.677061,127.95,127.91,15.86150805]
[1744746785752,7.81555295,127.95,127.91,15.86150805]
[1744746786078,23.677061,127.95,127.91,15.86150805]
[1744746786276,23.677061,127.95,127.9,0.14216157]
[1744746786277,15.86150805,127.93,127.89,15.86150805]
[1744746786776,15.86150805,127.94,127.89,15.86150805]
[1744746787680,7.81555295,127.95,127.91,15.86150805]
[1744746788248,23.677061,127.95,127.9,15.86150805]
[1744746788476,23.677061,127.95,127.88,26.0]
[1744746788657,15.86150805,127.93,127.88,26.0]
[1744746788979,15.86150805,127.93,127.88,41.86150805]
[1744746789153,27.35443532,127.95,127.89,15.86150805]
[1744746789154,15.86150805,127.94,127.89,15.86150805]
[1744746790270,7.81677479,127.93,127.89,15.86150805]
[1744746791177,7.81677479,127.93,127.9,15.86150805]
[1744746791876,7.81644292,127.94,127.9,15.86150805]
[1744746792563,19.53888237,127.95,127.9,15.86150805]
[1744746792765,35.40039042,127.95,127.9,15.86150805]
[1744746792984,15.86150805,127.95,127.9,15.86150805]
[1744746794287,15.86150805,127.94,127.89,15.86150805]
[1744746794756,7.81677479,127.93,127.89,15.86150805]
[1744746794953,7.81677479,127.93,127.9,15.86150805]
[1744746795158,7.81641206,127.94,127.9,15.86150805]
[1744746796480,27.35229758,127.96,127.9,15.86150805]
[1744746796980,15.86150805,127.95,127.9,15.86150805]
[1744746798378,27.35229758,127.96,127.9,15.86150805]
[1744746798578,7.81494216,127.96,127.92,15.86150805]
[1744746798881,7.81494216,127.96,127.91,0.14216157]
[1744746798882,7.81445586,127.97,127.93,15.86150805]
[1744746799580,7.81445586,127.97,127.94,15.86150805]
[1744746799769,7.81372089,127.98,127.94,15.86150805]
[1744746800672,7.81372089,127.98,127.93,7.81663908]
[1744746800673,7.81372089,127.98,127.95,15.86150805]
[1744746802377,7.81372089,127.98,127.94,27.12150805]
[1744746803685,7.84336001,127.99,127.95,15.86150805]
[1744746804879,0.03,127.99,127.95,15.86150805]
[1744746807989,15.86150805,127.98,127.94,11.26]
[1744746808790,22.15530805,127.95,127.9,11.24]
[1744746808966,23.67767187,127.94,127.9,11.24]
[1744746809390,23.67767187,127.94,127.9,27.10150805]
[1744746809888,23.67767187,127.94,127.9,11.24]
[1744746810388,15.86150805,127.92,127.9,11.24]
[1744746811293,7.81799702,127.91,127.87,15.86150805]
[1744746811980,7.81799702,127.91,127.86,11.24]
[1744746812178,7.81799702,127.91,127.87,15.86150805]
[1744746812486,7.81799702,127.91,127.86,11.24]
[1744746812717,15.86150805,127.9,127.86,11.24]
[1744746812887,15.86150805,127.89,127.86,11.24]
[1744746813596,15.86150805,127.87,127.84,0.063]
[1744746813774,15.86150805,127.85,127.84,0.063]
[1744746815677,23.68317406,127.85,127.84,0.063]
[1744746816275,7.82166601,127.85,127.84,0.063]
[1744746817500,23.68317406,127.85,127.84,0.063]
[1744746818495,42.33282292,127.85,127.84,1e-08]
[1744746819898,23.68317406,127.85,127.84,1e-08]
[1744746820192,7.82166601,127.85,127.84,1e-08]
[1744746820684,7.82044263,127.87,127.84,15.86150806]
[1744746820889,7.82001227,127.88,127.85,15.86150805]
[1744746821787,15.86150805,127.89,127.85,15.86150805]
[1744746822196,15.86150805,127.89,127.84,15.86150806]
[1744746822388,27.36531574,127.9,127.84,15.86150806]
[1744746822389,15.86150805,127.88,127.84,1e-08]
[1744746822600,15.86150805,127.89,127.84,15.86150806]
[1744746823505,15.86150805,127.88,127.84,1e-08]
[1744746823892,7.82044263,127.87,127.84,1e-08]
[1744746826107,26.0,127.89,127.85,15.86150805]
[1744746826311,15.86150805,127.9,127.85,15.86150805]
[1744746826509,58.1934572,127.92,127.86,15.86150805]
[1744746826510,49.67950507,127.91,127.86,15.86150805]
[1744746826808,49.67950507,127.91,127.84,0.14216158]
[1744746826809,7.81799702,127.91,127.88,15.86150805]
[1744746827807,7.81738586,127.92,127.88,15.86150805]
[1744746828689,7.81738586,127.92,127.89,15.86150805]
[1744746829693,7.81738586,127.92,127.88,15.86150805]
[1744746830220,7.81738586,127.92,127.84,1e-08]
[1744746830221,15.86150805,127.89,127.84,1e-08]
[1744746830507,15.86150805,127.89,127.84,15.86150806]
[1744746830812,15.86150805,127.88,127.84,15.86150806]
[1744746831103,26.0,127.9,127.86,15.86150805]
[1744746831290,15.86150805,127.91,127.86,15.86150805]
[1744746831484,7.81738586,127.92,127.88,15.86150805]
[1744746831682,23.67889391,127.92,127.87,15.86150805]
[1744746831886,49.67889391,127.92,127.87,15.86150805]
[1744746832096,15.86150805,127.91,127.86,15.86150805]
[1744746832508,69.22235857,127.92,127.87,15.86150805]
[1744746833110,33.81738586,127.92,127.89,15.86150805]
[1744746833401,33.81738586,127.92,127.85,7.96371982]
[1744746833402,49.67889391,127.92,127.88,11.26]
[1744746835312,15.86150805,127.91,127.88,11.26]
[1744746835517,69.22235857,127.92,127.88,11.26]
[1744746836816,53.36085052,127.92,127.88,11.26]
[1744746837200,69.22235857,127.92,127.88,11.26]
[1744746837394,15.86150805,127.91,127.88,11.26]
[1744746837601,69.22235857,127.92,127.88,11.26]
[1744746839017,7.81702924,127.93,127.89,15.86150805]
[1744746839206,7.81702924,127.93,127.9,15.86150805]
[1744746839403,7.81702924,127.93,127.91,15.86150805]
[1744746840402,7.81702924,127.93,127.88,12.7634]
[1744746840613,7.81702924,127.93,127.89,15.86150805]
[1744746840912,15.86150805,127.94,127.91,15.86150805]
[1744746840913,7.81646993,127.94,127.91,15.86150805]
[1744746841824,7.81555295,127.95,127.93,15.86150805]
[1744746842319,7.81555295,127.95,127.89,15.86150805]
[1744746842523,15.86150805,127.94,127.88,20.58309855]
[1744746842747,15.86150805,127.94,127.89,15.86150805]
[1744746843016,7.81677479,127.93,127.89,15.86150805]
[1744746843323,7.81677479,127.93,127.9,15.86150805]
[1744746845028,7.81616382,127.94,127.9,15.86150805]
[1744746845318,7.81616382,127.94,127.89,15.86150805]
[1744746845821,23.67767187,127.94,127.89,15.86150805]
[1744746848715,7.81585526,127.95,127.93,15.86150805]
[1744746849226,7.81585526,127.95,127.92,15.86150805]
[1744746849426,7.84488544,127.97,127.94,15.86150805]
[1744746849628,7.84488544,127.97,127.93,27.10150805]
[1744746850433,15.86150805,127.96,127.93,11.24]
[1744746851428,7.81555295,127.95,127.93,11.24]
[1744746852119,35.42733675,127.97,127.94,15.86150805]
[1744746852120,7.8150647,127.96,127.94,15.86150805]
[1744746853323,0.03,127.97,127.94,15.86150805]
[1744746855617,0.03,127.97,127.95,15.86150805]
[1744746858208,0.03,127.97,127.94,15.86150805]
[1744746859327,0.03,127.97,127.95,15.86150805]
[1744746859932,0.03,127.97,127.96,15.86150805]
[1744746867817,0.03,127.97,127.93,11.24]
[1744746868023,7.84433148,127.97,127.93,27.10150805]
[1744746868422,7.84433148,127.97,127.94,15.86150805]
[1744746869931,0.03,127.97,127.94,15.86150805]
[1744746870241,0.03,127.97,127.96,15.86150805]
[1744746871839,0.03,127.97,127.96,23.67645021]
[1744746872846,0.03,127.97,127.95,0.14216157]
[1744746873160,0.03,127.97,127.96,15.86150805]
[1744746875151,0.03,127.97,127.96,23.67645021]
[1744746876852,0.03,127.97,127.96,15.86150805]
[1744746878156,0.03,127.97,127.93,45.19876885]
[1744746878360,0.03,127.97,127.93,61.0602769]
[1744746878527,0.03,127.97,127.94,15.86150805]
[1744746879956,0.03,127.97,127.96,15.86150805]
[1744746880353,0.03,127.97,127.96,42.00366962]
[1744746881348,0.03,127.97,127.96,49.81861178]
[1744746890059,0.03,127.97,127.93,11.24]
[1744746890272,0.03,127.97,127.91,7.81799702]
[1744746890273,15.89150805,127.97,127.91,7.81799702]
[1744746890436,15.86150805,127.96,127.91,15.86150805]
[1744746890638,17.45840805,127.94,127.9,11.22]
[1744746890959,22.43050805,127.93,127.9,11.22]
[1744746891147,15.86150805,127.92,127.9,11.22]
[1744746891456,22.43050805,127.93,127.9,11.22]
[1744746892062,7.81738586,127.92,127.9,11.22]
[1744746892237,17.45840805,127.94,127.91,15.86150805]
[1744746892238,1.5969,127.94,127.91,15.86150805]
[1744746892443,7.81555295,127.95,127.91,15.86150805]
[1744746893563,15.86150805,127.94,127.9,11.22]
[1744746894962,7.81677479,127.93,127.9,27.08150805]
[1744746898357,7.816435,127.94,127.9,27.08150805]
[1744746898546,7.816435,127.94,127.91,15.86150805]
[1744746899039,15.86150805,127.93,127.9,11.22]
[1744746899664,43.21835261,127.94,127.9,11.22]
[1744746900165,43.21835261,127.94,127.89,15.86150805]
[1744746900365,27.35684456,127.94,127.86,0.14216157]
[1744746900662,69.21835261,127.94,127.89,15.86150805]
[1744746900860,69.21835261,127.94,127.89,27.08150805]
[1744746901247,15.86150805,127.93,127.89,11.22]
[1744746901442,7.81677479,127.93,127.89,27.08150805]
[1744746901648,15.86150805,127.9,127.85,37.22]
[1744746901868,15.86150805,127.9,127.85,53.08150805]
[1744746902162,15.86150805,127.89,127.85,11.22]
[1744746902667,34.51115691,127.9,127.85,27.08150805]
[1744746903572,7.81921964,127.89,127.85,27.08150805]
[1744746903872,13.84216619,127.91,127.88,15.86150805]
[1744746904071,7.81826619,127.91,127.88,15.86150805]
[1744746904285,23.67977424,127.91,127.87,15.86150805]
[1744746904462,15.86150805,127.9,127.85,11.22]
[1744746904664,22.21770805,127.88,127.85,11.22]
[1744746905257,15.86150805,127.89,127.85,27.08150805]
[1744746905461,15.86150805,127.89,127.85,11.22]
[1744746905663,7.81983109,127.88,127.85,11.22]
[1744746905864,7.81983109,127.88,127.85,27.08150805]
[1744746906368,26.0,127.9,127.86,15.86150805]
[1744746906572,14.06372754,127.91,127.89,15.86150805]
[1744746906875,7.81758827,127.92,127.89,15.86150805]
[1744746907079,7.81758827,127.92,127.9,15.86150805]
[1744746907649,7.81677479,127.93,127.89,15.86150805]
[1744746908261,7.81677479,127.93,127.9,15.86150805]
[1744746908471,7.81677479,127.93,127.91,15.86150805]
[1744746909361,13.8184463,127.94,127.91,15.86150805]
[1744746909970,13.8184463,127.94,127.9,27.08150805]
[1744746910286,6.5403,127.97,127.93,15.86150805]
[1744746910469,7.8448438,127.97,127.95,15.86150805]
[1744746911070,7.8448438,127.97,127.94,15.86150805]
[1744746911257,7.8448438,127.97,127.91,0.14216157]
[1744746911460,7.8448438,127.97,127.93,15.86150805]
[1744746911772,15.86150805,127.96,127.92,15.86150805]
[1744746912264,43.24218055,127.97,127.92,15.86150805]
[1744746913984,7.8448438,127.97,127.94,15.86150805]
[1744746914165,7.8448438,127.97,127.93,15.86150805]
[1744746916080,15.86150805,127.94,127.9,11.22]
[1744746916280,15.86150805,127.93,127.9,11.22]
[1744746917876,7.81738586,127.92,127.9,11.22]
[1744746920688,43.22235857,127.92,127.86,11.22]
[1744746920982,43.22235857,127.92,127.87,15.86150805]
[1744746921280,7.81738586,127.92,127.88,15.86150805]
[1744746923083,7.81738586,127.92,127.89,15.86150805]
[1744746924682,7.81677479,127.93,127.9,15.86150805]
[1744746925686,6.401,127.94,127.9,15.86150805]
[1744746927791,26.0,127.95,127.91,15.86150805]
[1744746928779,6.643,127.97,127.93,15.86150805]
[1744746928978,6.643,127.97,127.94,15.86150805]
[1744746929775,6.643,127.97,127.93,15.86150805]
[1744746929976,6.643,127.97,127.94,15.86150805]
[1744746930170,6.643,127.97,127.95,15.86150805]
[1744746930171,0.03,127.97,127.95,15.86150805]
[1744746930490,0.03,127.97,127.94,15.86150805]
[1744746930696,41.89150805,127.97,127.92,23.67857659]
[1744746931993,15.89150805,127.97,127.92,23.67857659]
[1744746932485,41.89150805,127.97,127.93,15.86150805]
[1744746932686,26.03,127.97,127.93,23.67802323]
[1744746932889,0.03,127.97,127.95,15.86150805]
[1744746935171,0.03,127.97,127.94,15.86150805]
[1744746935490,15.89150805,127.97,127.91,11.22]
[1744746935799,15.89150805,127.97,127.92,15.86150805]
[1744746936498,15.89150805,127.97,127.93,15.86150805]
[1744746937193,0.03,127.97,127.93,15.86150805]
[1744746937491,15.89150805,127.97,127.93,15.86150805]
[1744746939500,0.03,127.97,127.94,15.86150805]
[1744746941303,0.03,127.97,127.94,23.6775848]
[1744746941596,0.03,127.97,127.95,15.86150805]
[1744746942897,0.03,127.97,127.94,23.6775848]
[1744746943085,0.03,127.97,127.94,15.86150805]
[1744746943789,0.03,127.97,127.93,23.67809284]
[1744746943991,0.03,127.97,127.94,15.86150805]
[1744746946297,0.03,127.97,127.94,23.67762234]
[1744746950988,0.03,127.97,127.92,7.81738586]
[1744746951188,0.03,127.97,127.94,10.12914508]
[1744746952097,0.03,127.97,127.95,10.12914508]
[1744746952297,0.03,127.97,127.92,67.87743084]
[1744746952495,0.03,127.97,127.95,10.12914508]
[1744746953090,0.03,127.97,127.95,17.94441273]
[1744746962197,0.03,127.97,127.96,10.12914508]
[1744746962594,0.03,127.97,127.95,7.81526765]
[1744746962789,0.03,127.97,127.94,7.81583139]
[1744746963502,28.80879394,127.97,127.92,19.01707153]
[1744746963819,18.02634508,127.97,127.92,29.14621661]
[1744746964000,18.02634508,127.97,127.92,19.01707153]
[1744746964200,18.02634508,127.97,127.92,29.14621661]
[1744746965211,25.84076592,127.97,127.93,10.12914508]
[1744746965396,15.71162084,127.97,127.93,10.12914508]
[1744746965591,25.84076592,127.97,127.93,10.12914508]
[1744746967222,15.71162084,127.97,127.93,10.12914508]
[1744746969222,15.71162084,127.97,127.93,17.94577304]
[1744746969522,0.03,127.97,127.96,10.12914508]
[1744746970208,7.84439807,127.97,127.93,17.94577304]
[1744746970507,0.03,127.97,127.93,17.94577304]
[1744746971227,0.03,127.97,127.94,10.12914508]
[1744746971605,0.03,127.97,127.94,17.9452775]
[1744746973622,0.03,127.97,127.93,7.81677479]
[1744746973824,0.03,127.97,127.94,10.12914508]
[1744746974836,0.03,127.97,127.95,10.12914508]
[1744746977527,0.03,127.97,127.95,17.9446559]
[1744746980615,0.03,127.97,127.96,10.12914508]
[1744746982436,0.03,127.97,127.96,17.94408724]
[1744746984333,0.03,127.97,127.94,7.81616382]
[1744746984632,0.03,127.97,127.95,17.94464758]
[1744746984834,0.03,127.97,127.96,10.12914508]
[1744746987033,0.03,127.97,127.95,11.2]
[1744746988038,0.03,127.97,127.95,21.32914508]
[1744746994641,0.03,127.97,127.96,10.12914508]
[1744746996427,0.03,127.97,127.95,11.2]
[1744746996748,0.03,127.97,127.96,10.12914508]
[1744746997844,0.03,127.97,127.95,11.2]
[1744746998435,7.81494216,127.96,127.95,11.2]
[1744747000419,0.03,127.97,127.95,21.32914508]
[1744747001349,0.03,127.97,127.96,10.12914508]
[1744747002743,0.03,127.97,127.96,17.94408724]
[1744747008155,0.03,127.97,127.96,18.08624881]
[1744747010458,0.03,127.97,127.96,17.94408724]
[1744747010648,0.03,127.97,127.96,10.12914508]
[1744747010827,0.03,127.97,127.96,17.94408724]
[1744747012161,0.03,127.97,127.96,10.12914508]
[1744747012366,0.03,127.97,127.95,11.2]
[1744747012657,10.15914508,127.97,127.95,11.2]
[1744747014461,7.81494216,127.96,127.95,11.2]
[1744747015372,7.84459692,127.97,127.95,11.2]
[1744747016549,17.973742,127.97,127.95,11.2]
[1744747017556,7.84459692,127.97,127.95,11.2]
[1744747018054,0.03,127.97,127.95,21.32914508]
[1744747018633,0.03,127.97,127.96,10.12914508]
[1744747019634,0.03,127.97,127.96,17.94408724]
[1744747020937,0.03,127.97,127.96,18.08624881]
[1744747021137,0.03,127.97,127.96,17.94408724]
[1744747021339,0.03,127.97,127.96,18.08624881]
[1744747021540,0.03,127.97,127.96,10.12914508]
[1744747022047,0.03,127.97,127.96,17.94408724]
[1744747022247,0.03,127.97,127.96,10.12914508]
[1744747023957,0.03,127.97,127.95,11.18]
[1744747026655,0.03,127.97,127.96,10.12914508]
[1744747028260,0.03,127.97,127.96,17.94408724]
[1744747028949,0.03,127.97,127.95,18.99533566]
[1744747029155,0.03,127.97,127.96,15.81918801]
[1744747029457,15.84918801,127.97,127.95,11.18]
[1744747030040,0.03,127.97,127.95,11.18]
[1744747030250,7.84433148,127.97,127.95,11.18]
[1744747038679,0.03,127.97,127.96,15.81918801]
[1744747039748,0.03,127.97,127.95,26.99918801]
[1744747040979,0.03,127.97,127.95,11.18]
[1744747042458,0.03,127.97,127.95,26.99918801]
[1744747043369,0.03,127.97,127.96,15.81918801]
[1744747048268,0.03,127.97,127.95,26.99918801]
[1744747048570,0.03,127.97,127.95,11.18]
[1744747048745,0.03,127.97,127.95,26.99918801]
[1744747049183,0.03,127.97,127.95,21.30768905]
[1744747049390,0.03,127.97,127.96,10.12768905]
[1744747050589,0.03,127.97,127.95,21.30768905]
[1744747050894,0.03,127.97,127.95,11.18]
[1744747051068,0.03,127.97,127.95,21.30768905]
[1744747051269,0.03,127.97,127.95,11.18]
[1744747052692,0.03,127.97,127.95,21.30768905]
[1744747052993,0.03,127.97,127.95,11.18]
[1744747054391,10.12768905,127.96,127.91,11.18]
[1744747054564,10.12768905,127.96,127.91,21.30768905]
[1744747054865,7.81494216,127.96,127.92,10.12768905]
[1744747055068,0.03,127.97,127.95,10.12768905]
[1744747055268,0.03,127.97,127.96,21.30768905]
[1744747057498,0.03,127.97,127.96,29.26479278]
[1744747068991,0.03,127.97,127.96,21.30768905]
[1744747069677,0.03,127.97,127.96,29.12263121]
[1744747070692,0.03,127.97,127.96,29.26479278]
[1744747072778,0.03,127.99,127.96,107.96255326]
[1744747072988,0.03,127.99,127.96,11.18]
[1744747073297,0.03,127.99,127.95,10.12768905]
[1744747073600,0.03,127.99,127.96,10.12768905]
[1744747073775,0.03,127.99,127.98,10.12768905]
[1744747075109,0.03,127.99,127.97,10.12768905]
[1744747076501,0.03,127.99,127.98,10.12768905]
[1744747079198,0.03,127.99,127.98,17.94140994]
[1744747080107,0.03,127.99,127.98,10.12768905]
[1744747082800,0.03,127.99,127.97,18.9942922]
[1744747083004,0.03,127.99,127.98,10.12768905]
[1744747084308,0.03,127.99,127.97,11.18]
[1744747085107,6.6732,127.99,127.97,11.18]
[1744747085601,0.03,127.99,127.98,10.12768905]
[1744747085978,0.03,127.99,127.98,17.94140994]
[1744747094008,0.03,127.99,127.98,10.12768905]
[1744747096112,0.03,127.99,127.98,29.10140994]
[1744747100300,0.03,127.99,127.98,69.61216614]
[1744747100916,0.03,127.99,127.98,29.10140994]
[1744747105112,0.03,127.99,127.98,11.16]
[1744747105314,0.03,127.99,127.98,21.28768905]
[1744747113528,0.03,127.99,127.98,11.16]
[1744747113818,0.03,127.99,127.98,21.28768905]
[1744747114712,0.03,127.99,127.98,11.16]
[1744747114912,0.03,127.99,127.98,21.28768905]
[1744747115114,0.03,127.99,127.98,11.16]
[1744747115326,0.03,127.99,127.98,21.28768905]
[1744747116324,0.03,127.99,127.98,11.16]
[1744747117115,28.80733791,127.99,127.94,11.16]
[1744747117310,7.81433148,127.97,127.94,11.16]
[1744747117709,17.94202053,127.97,127.94,11.16]
[1744747118117,18.64964886,127.96,127.94,11.16]
[1744747118315,44.04678905,127.95,127.94,11.16]
[1744747118620,44.04678905,127.95,127.91,0.063]
[1744747118799,10.12768905,127.94,127.91,0.063]
[1744747118997,33.9191,127.95,127.91,0.063]
[1744747119220,10.12768905,127.94,127.91,0.063]
[1744747119620,6.1102,127.98,127.93,10.12768905]
[1744747119818,32.1102,127.98,127.94,10.12768905]
[1744747120012,32.1102,127.98,127.91,0.063]
[1744747120219,10.12768905,127.97,127.93,10.12768905]
[1744747120621,17.94232869,127.97,127.93,10.12768905]
[1744747121113,7.81463964,127.97,127.93,10.12768905]
[1744747122122,17.94232869,127.97,127.93,10.12768905]
[1744747122810,17.94232869,127.97,127.92,10.12768905]
[1744747123320,7.81463964,127.97,127.93,10.12768905]
[1744747124518,17.94232869,127.97,127.92,10.12768905]
[1744747124925,10.12768905,127.96,127.92,10.12768905]
[1744747125116,10.12768905,127.96,127.91,7.8809247]
[1744747125317,10.12768905,127.96,127.91,18.00861375]
[1744747125628,10.12768905,127.96,127.91,7.8809247]
[1744747126034,10.12768905,127.96,127.91,0.063]
[1744747126225,10.12768905,127.96,127.91,10.19068905]
[1744747126416,10.12768905,127.95,127.91,10.19068905]
[1744747126615,10.12768905,127.95,127.91,0.063]
[1744747127033,7.81616382,127.94,127.91,0.063]
[1744747128235,7.81616382,127.94,127.91,10.19068905]
[1744747128827,7.81433148,127.97,127.93,10.12768905]
[1744747129031,7.81433148,127.97,127.91,0.063]
[1744747129032,0.4698,127.94,127.91,0.063]
[1744747129235,0.4698,127.94,127.93,10.12768905]
[1744747130831,0.4698,127.94,127.91,0.20516157]
[1744747131035,0.4698,127.94,127.93,10.12768905]
[1744747132840,0.4698,127.94,127.93,18.08662541]
[1744747133142,0.03,127.99,127.93,88.41681126]
[1744747133312,0.03,127.99,127.98,10.12768905]
[1744747133517,0.03,127.99,127.98,21.28768905]
[1744747136040,0.03,127.99,127.98,11.16]
[1744747136228,0.03,127.99,127.98,21.28768905]
[1744747137524,0.03,127.99,127.98,11.16]
[1744747137842,0.03,127.99,127.98,21.28768905]
[1744747138541,0.03,127.99,127.92,7.81738586]
[1744747138724,26.03,127.99,127.93,11.16]
[1744747139045,26.03,127.99,127.94,10.12768905]
[1744747139220,26.03,127.99,127.95,10.12768905]
[1744747139617,7.81372089,127.98,127.95,10.12768905]
[1744747139928,7.81372089,127.98,127.93,11.16]
[1744747140249,0.03,127.99,127.97,10.12768905]
[1744747140443,0.03,127.99,127.98,10.12768905]
[1744747140626,7.84335139,127.99,127.94,0.14216157]
[1744747141119,0.03,127.99,127.98,10.12768905]
[1744747142348,0.03,127.99,127.95,7.81533142]
[1744747142529,0.03,127.99,127.98,10.12768905]
[1744747142926,0.03,127.99,127.97,10.12768905]
[1744747143338,0.03,127.99,127.98,10.12768905]
[1744747143849,0.03,127.99,127.97,10.12768905]
[1744747144027,0.03,127.99,127.96,10.12768905]
[1744747144229,0.03,127.99,127.94,33.81601611]
[1744747144635,0.03,127.99,127.95,10.12768905]
[1744747144931,0.1224,127.99,127.95,10.12768905]
[1744747145537,7.81372089,127.98,127.93,11.16]
[1744747145738,10.12768905,127.97,127.93,11.16]
[1744747146532,10.12768905,127.95,127.93,11.16]
[1744747146748,10.12768905,127.94,127.93,11.16]
[1744747147428,10.12768905,127.95,127.93,11.16]
[1744747147633,7.81616382,127.94,127.93,11.16]
[1744747147944,17.94385287,127.94,127.93,11.16]
[1744747148950,37.48426243,127.94,127.91,0.063]
[1744747149149,10.12768905,127.93,127.91,0.063]
[1744747149753,45.53757191,127.96,127.91,0.063]
[1744747150054,7.9357689,127.99,127.95,10.12768905]
[1744747150352,7.9357689,127.99,127.96,10.12768905]
[1744747151239,7.9357689,127.99,127.96,15.82242367]
[1744747152452,7.9357689,127.99,127.95,26.96242367]
[1744747152862,7.9357689,127.99,127.96,15.82242367]
[1744747153932,7.8433689,127.99,127.96,15.82242367]
[1744747155258,0.03,127.99,127.98,15.82242367]
[1744747158656,0.03,127.99,127.96,15.82242367]
[1744747158858,0.03,127.99,127.98,15.82242367]
[1744747159861,0.03,127.99,127.97,15.82242367]
[1744747160541,0.03,127.99,127.96,15.82242367]
[1744747160743,0.03,127.99,127.97,15.82242367]
[1744747161356,0.03,127.99,127.95,11.14]
[1744747161856,0.03,127.99,127.95,26.96242367]
[1744747162252,0.03,127.99,127.97,15.82242367]
[1744747162857,0.03,127.99,127.96,15.82242367]
[1744747163038,0.03,127.99,127.97,15.82242367]
[1744747164374,0.03,127.99,127.95,11.14]
[1744747164665,0.03,127.99,127.95,26.96242367]
[1744747164865,0.03,127.99,127.96,15.82242367]
[1744747165544,0.03,127.99,127.95,26.96242367]
[1744747166264,0.03,127.99,127.96,15.82242367]
[1744747166442,24.75484886,127.99,127.95,11.14]
[1744747166643,40.57727253,127.99,127.95,11.14]
[1744747166846,42.21097253,127.99,127.95,11.14]
[1744747167048,15.82242367,127.98,127.95,11.14]
[1744747168456,7.81433148,127.97,127.95,11.14]
[1744747169962,7.90643148,127.97,127.95,11.14]
[1744747170464,0.0921,127.97,127.96,15.82242367]
[1744747171166,0.0921,127.97,127.95,26.96242367]
[1744747171872,0.0921,127.97,127.95,11.14]
[1744747172269,0.0921,127.97,127.95,26.96242367]
[1744747173370,0.0921,127.97,127.96,10.1270749]
[1744747174449,0.0921,127.97,127.95,21.2670749]
[1744747174648,0.0921,127.97,127.95,11.14]
[1744747175353,10.1270749,127.98,127.97,14.9079]
[1744747175556,28.77672376,127.98,127.97,14.9079]
[1744747176376,36.59044465,127.98,127.97,14.9079]
[1744747176569,18.79181043,127.97,127.91,11.203]
[1744747176875,10.1270749,127.92,127.91,11.203]
[1744747177170,10.1270749,127.92,127.91,0.063]
[1744747177575,28.77672376,127.92,127.91,0.063]
[1744747178444,36.59410962,127.92,127.91,0.063]
[1744747178844,7.81738586,127.92,127.91,0.063]
[1744747179058,20.0,127.95,127.91,0.063]
[1744747179059,18.64964886,127.96,127.91,10.1900749]
[1744747179264,15.83465685,127.95,127.91,0.063]
[1744747179865,42.29924787,127.96,127.91,15.89765685]
[1744747180174,42.29924787,127.96,127.92,15.83465685]
[1744747180353,15.83465685,127.93,127.91,0.063]
[1744747180559,7.81738586,127.92,127.91,0.063]
[1744747180955,7.81677479,127.93,127.91,0.063]
[1744747181255,7.81555295,127.95,127.92,15.83465685]
[1744747181662,7.81555295,127.95,127.91,0.063]
[1744747181981,7.81555295,127.95,127.91,15.89765685]
[1744747182784,23.6502098,127.95,127.91,0.063]
[1744747183155,15.83465685,127.94,127.91,0.063]
[1744747184900,7.81677479,127.93,127.91,0.063]
[1744747185258,15.83465685,127.92,127.91,0.063]